{"text_format":"1","workbook":"xlsx","n_sheets":1,"sheets":["SCS"],"not_rendered":{"charts":0,"images":0,"macros":1,"external_links":0,"defined_names":0,"comments":0,"pivot_tables":0},"unopened":[],"bounds":{"document_bytes":16777216,"sheet_cells":100000,"rows_first":2000,"rows_last":500,"rows_between":2000,"halvings":0,"cell_chars":16384,"cell_head_chars":4096},"cells_cut":0,"cells_raw":0,"read":"whole","date_system":"1900"}

{"sheet":"SCS","index":0,"n_rows":26,"n_cols":12,"rows_kept":26,"cut":false,"hidden":false,"merged":[[1,1,1,8],[15,4,15,5]]}
[]
[null,"Sediment Containment Systems"]
[null,"A","B","C","D","E","F","G","H"," "," "," "]
[null,"Drawing","Location (referenced on Drawing)","Sediment Containment System Identifier","Total Volume in Cubic Metres","Area Served in Hectares","Sediment Containment System (SCS) Type","Design Volume per ha","P-value"]
[null,"Drawing","Location (referenced on drawing)","Sediment Containment System Identifier","Volume in Cubic Metres","Area Served in Hectares","Column12","Design Volume","P-value"]
[null,null,null,null,null,null,null,{"$f":"IF(OR(ISBLANK(E6),ISBLANK(F6)),\"\",E6/F6)","v":""},{"$f":"IF(OR(ISBLANK(E6),ISBLANK(F6),ISBLANK(G6)),\"\",IF(G6=\"Simple SCS\",VLOOKUP(H6,$C$18:$E$26,3),VLOOKUP(H6,$C$18:$F$26,4)))","v":""}]
[null,null,null,null,null,null,null,"",""]
[null,null,null,null,null,null,null,"",""]
[null,null,null,null,null,null,null,"",""]
[null,null,null,null,null,null,null,"",""]
[null,null,null,null,null,null,null,"",""]
[null,null,null,null,null,null,null,"",""]
[null,null,null,null,null,null,null,"",""]
[null,null,null,null,null,null,null,"",""]
[]
[null,null,null,null,"P-value"]
[null,null," Design Volume (m3)","Available Volume (m3)","Simple SCS","Designed SCS"]
[null,null,0,0,1,1]
[null,null,100,67,0.7,{"$f":"E19-0.2","v":0.49999999999999994}]
[null,null,150,100,0.6,0.39999999999999997]
[null,null,200,133,0.6,0.39999999999999997]
[null,null,300,200,0.5,0.3]
[null,null,400,267,0.4,0.2]
[null,null,500,333,0.3,9.9999999999999978E-2]
[null,null,750,500,0.2,0.1]
[null,null,1000,667,0.1,0.1]